Cogmind - Beta 16 @@@ ROGUE MODE // 2025.11.25 @ 00:00:45 Player: MolePlayingNice Result: Escaped! Performance ------------- Evolutions (9) 4500 Regions Visited (21) 4200 Robots Destroyed (270) 1350 Value Destroyed (14598) 14598 Prototype IDs (119) 2380 Alien Tech Used (6) 1200 Bonus (19447) 19447 TOTAL SCORE: 47675 Bonus ------- Triggered High Security 500 High Alert Combat Kills 2786 Follower Combat Kills 2831 Met Zhirov 300 Scanned by Researcher 500 Met MAIN.C 5000 Destroyed MAIN.C Shell 5000 Win 3000 Friendly Fire -470 Cogmind --------- Core Integrity 272/1600 Matter 300/300 Energy 888/900 System Corruption 11% Temperature Warm (140) Movement Hovering (42) Location To Epsilon Eridani Parts ------- > --- POWER (2) -------- (None) > --- PROPULSION (7) --- Combat Linear Gravjet Combat Linear Gravjet Combat Linear Gravjet Concept Gyrokinetic System Concept Gyrokinetic System Concept Gyrokinetic System > --- UTILITY (11) ----- Experimental Cooling System Concept Thermoelectric Network Concept Chromion Battery Experimental Optical Array Experimental Core Analyzer Experimental Core Shielding Centrium Medium Armor Plating Centrium Medium Armor Plating Graphene Brace > --- WEAPON (5) ------- Concept Deflector Sword > --- INVENTORY (5) ---- Vortex Chain Reactor Cooled Directed Potential Cannon Peak State ------------ > --- POWER ------------ Concept Zero-point Core Concept Zero-point Core > --- PROPULSION ------- Concept Combat Aerolev Unit Concept Combat Aerolev Unit Concept Gyrokinetic System Concept Gyrokinetic System Concept Gyrokinetic System Concept Gyrokinetic System Concept Gyrokinetic System > --- UTILITY ---------- Concept Antigrav Storage Unit Concept Weapon Articulator Concept Weapon Articulator Experimental Core Analyzer Femtoactuators Experimental Actuator Array Concept Cloak Mesh Heavy Regenerative Plating AEGIS Remote Shield Concept Antimissile System > --- WEAPON ----------- Nanosword Nanosword Nanosword Concept Deflector Sword Experimental Jetlance > --- INVENTORY -------- Graviton Reactor Experimental Antimatter Reactor Combat Antigrav System Experimental Antigrav System Concept Thermoelectric Network Concept Chromion Battery Femtoactuators Experimental Force Booster Experimental Force Booster Advanced Transmission Jammer Experimental ECM Suite Graphene Brace Experimental EM Shield Crosscalibrator Concept Impact Drone Bay Concept Impact Drone Bay High-powered Transdimensional Reconstructor Concept Plasma Driver Concept Plasma Driver Cooled Directed Potential Cannon Tesla Bomb Launcher [Rating: 297] Favorites ----------- Power Concept Zero-point Core Engine Light Ion Engine Power Core Concept Zero-point Core Reactor Micro Antimatter Reactor Propulsion Combat Linear Gravjet Treads Light Treads Leg Improved Aluminum Leg Hover Unit Combat Linear Gravjet Flight Unit Improved Flight Unit Utility Hacking Suite Device Advanced Sensor Array Storage Medium Storage Unit Processor Advanced Signal Interpreter Hackware Hacking Suite Protection Heavy Regenerative Plating Weapon Nanosword Energy Gun Medium Laser Energy Cannon Beam Cannon Ballistic Gun Enhanced Autogun Ballistic Cannon Improved Light Cannon Launcher Tesla Bomb Launcher Impact Weapon Core Stripper Slashing Weapon Nanosword Piercing Weapon Experimental Jetlance Build | -11 -10 -9 -8 -8 -7 -6 -6 -6 -5 -4 -4 -4 -4 -3 -3 -3 -2 -2 -2 -1 -1 ------- Run | Yrd Mat Mat Mat Sto Fac Fac Was Fac Fac Fac Upp Upp Zhi Pro Res Tes Res Qua Frg Acc Com Slots Evolved 18 | . . 2 2 . 2 2 . . 2 2 . . . . 2 . 2 . . 2 . Power 1 | . . . . . . . . . . 1 . . . . . . . . . . . Propulsion 5 | . . . 1 . 1 . . . 1 1 . . . . . . 1 . . . . Utility 9 | . . 2 1 . 1 2 . . 1 . . . . . 2 . . . . . . Weapon 3 | . . . . . . . . . . . . . . . . . 1 . . 2 . Parts Attached 251 | . 6 21 11 12 12 12 2 3 6 11 2 . 7 . 8 21 15 10 50 15 27 Power 35 | . 1 2 2 2 3 1 . . 1 2 . . 1 . 1 3 . 3 8 . 5 Engine 6 | . 1 2 2 . 1 . . . . . . . . . . . . . . . . Core 9 | . . . . 2 2 1 . . 1 1 . . . . . . . . 2 . . Reactor 20 | . . . . . . . . . . 1 . . 1 . 1 3 . 3 6 . 5 Propulsion 53 | . 2 5 3 4 3 1 . 2 1 6 . . 1 . 2 2 2 . 12 4 3 Treads 8 | . . 3 3 2 . . . . . . . . . . . . . . . . . Leg 5 | . 2 1 . 1 . . . . . . . . 1 . . . . . . . . Wheel . | . . . . . . . . . . . . . . . . . . . . . . Hover 31 | . . . . . . . . . . 6 . . . . 2 2 2 . 12 4 3 Flight 9 | . . 1 . 1 3 1 . 2 1 . . . . . . . . . . . . Utility 130 | . 2 7 4 4 5 8 1 . 3 3 1 . 4 . 4 13 10 7 26 10 18 Device 66 | . . 5 1 2 1 1 1 . 2 . . . 2 . 3 7 2 5 20 9 5 Storage 8 | . 1 . . 1 . 1 . . . 1 . . . . . . 1 . 2 . 1 Processor 17 | . . . . . 1 5 . . . . . . . . . 1 1 . 4 1 4 Hackware 17 | . . . 1 . 2 1 . . 1 1 . . 1 . 1 2 5 2 . . . Protection 22 | . 1 2 2 1 1 . . . . 1 1 . 1 . . 3 1 . . . 8 Artifact . | . . . . . . . . . . . . . . . . . . . . . . Weapon 33 | . 1 7 2 2 1 2 1 1 1 . 1 . 1 . 1 3 3 . 4 1 1 Energy Gun 1 | . . 1 . . . . . . . . . . . . . . . . . . . Energy Cannon 9 | . 1 3 . . . 1 . . 1 . . . . . . 1 . . . 1 1 Ballistic Gun 4 | . . 1 . 2 . . . . . . . . . . . 1 . . . . . Ballistic Cannon 1 | . . 1 . . . . . . . . . . . . . . . . . . . Launcher 5 | . . 1 2 . . . . . . . . . . . 1 . 1 . . . . Special Weapon . | . . . . . . . . . . . . . . . . . . . . . . Impact Weapon 1 | . . . . . . . . . . . . . . . . . . . 1 . . Slashing Weapon 9 | . . . . . 1 1 . 1 . . 1 . 1 . . 1 2 . 1 . . Piercing Weapon 3 | . . . . . . . 1 . . . . . . . . . . . 2 . . Special Melee Weapon . | . . . . . . . . . . . . . . . . . . . . . . Unidentified Prototypes 44 | . . 3 1 2 1 . . 1 . . . . 5 . . 9 2 2 12 . 6 Corrupted Parts 3 | . . . . . . . . . . . . . . . . . . . 3 . . System Corruption 16 | . . . . . . . . . . . . . . . . . . . 16 . . Parts Lost 60 | . 1 3 . 3 1 1 . . . 2 4 1 . . 3 1 1 . 8 11 20 Power 14 | . 1 . . . 1 1 . . . 1 1 . . . 1 . . . 2 . 6 Propulsion 12 | . . 1 . 1 . . . . . 1 1 . . . 1 1 . . . 2 4 Utility 28 | . . 2 . 2 . . . . . . 1 1 . . 1 . 1 . 6 6 8 Weapon 6 | . . . . . . . . . . . 1 . . . . . . . . 3 2 Highest Loss Streak 7 | . 1 1 . 2 1 1 . . . 1 2 1 . . 1 1 1 . 1 7 7 To Critical Strikes 2 | . . 1 . . . . . . . . . . . . . . . . . 1 . Average Backups 14 | . 8 9 10 10 6 9 10 10 9 13 17 10 9 10 9 9 13 18 20 22 19 Power 1 | . . . . . . 1 1 1 . . . . . 1 1 . . . 2 2 2 Propulsion 2 | . 6 6 5 5 1 2 2 2 2 3 3 . . . . . 2 3 4 2 . Utility 6 | . . . . 2 1 2 2 3 3 6 9 8 6 7 6 6 8 8 6 13 11 Weapon 3 | . . 2 3 3 3 3 4 4 2 3 4 2 1 1 1 1 1 3 4 4 4 Tool/Special . | . . . . . . . . . . . . . . . . . . . . . . Unused Backups 58 | . 9 7 2 1 . . . . 3 . . 3 2 . 4 1 3 5 5 3 10 Power 10 | . 1 . 1 . . . . . 2 . . . 1 . 2 . . 1 . . 2 Propulsion 12 | . 4 4 . 1 . . . . . . . . . . . . 2 1 . . . Utility 18 | . 1 1 . . . . . . . . . 1 1 . 2 1 1 3 1 1 5 Weapon 16 | . 3 2 1 . . . . . . . . 2 . . . . . . 3 2 3 Tool/Special 2 | . . . . . . . . . 1 . . . . . . . . . 1 . . Average Slot Usage (%) 91 | . 91 97 97 97 85 90 93 93 93 88 82 73 80 84 87 97 94 94 93 90 84 Engine 1 | . 14 11 9 3 . . . . . . . . . . . . . . . . . Core 2 | . . . . 6 5 6 6 6 5 2 2 4 5 5 . . . . 1 8 3 Reactor 3 | . . . . . . . . . . 3 1 . 3 5 7 8 8 8 6 . 3 Treads 2 | . . 3 24 24 . . . . . . . . . . . . . . . . . Leg 2 | . 28 18 . 1 . . . . . . . . . . . . . . . . . Hover 18 | . . . . . . . . . . 22 24 21 21 21 21 26 28 30 29 27 27 Flight 3 | . . . . . 29 25 26 26 29 7 . . . . . . . . . . . Device 15 | . . 19 12 7 4 4 6 6 5 5 6 10 10 10 13 16 9 12 24 25 21 Storage 5 | . 14 11 9 9 7 6 6 6 5 5 5 5 5 5 4 4 4 4 4 4 5 Processor 5 | . . . . . 3 16 13 13 9 5 5 5 5 5 4 2 5 8 6 6 6 Hackware 10 | . . . 5 9 22 21 26 26 24 26 24 21 23 26 23 23 19 12 . . . Protection 5 | . 5 11 17 17 2 . . . 4 4 4 . . . 3 2 3 3 4 3 6 Energy Cannon 2 | . . 14 17 6 . . . . . . . . . . . 3 1 . . . 1 Slashing Weapon 6 | . . . . . 6 5 3 6 5 4 4 5 5 4 3 4 9 13 12 15 6 Peak Build Rating 297 | . 10 15 25 28 41 51 59 59 71 101 96 89 102 96 126 149 182 204 280 297 289 Average Rating 136 | . 8 13 19 24 34 48 54 52 66 90 92 79 90 92 108 133 165 189 224 267 252 On Entrance 87 | 6 6 10 12 21 25 40 51 52 56 71 91 93 79 96 90 113 143 180 197 277 220 Avg Prop Armor Cover (%) 2 | . . . . 3 . . . . . 4 . . . . 3 2 1 . 1 4 . Naked Turns . | . . . . . . . . . . . . . . . . . . . . . . Heaviest Build 122 | 12 22 28 32 32 20 21 23 20 23 66 69 54 45 42 54 78 101 107 122 121 119 Greatest Support 114 | 20 26 40 60 60 21 21 21 23 29 81 70 56 56 56 72 75 105 105 112 114 110 Greatest Overweight (x) 15 | . . 1 . . 4 . 1 . . . 1 15 . . . 1 . 1 1 1 1 Average Overweight (x) . | . . . . . . . . . . . . . . . . . . . . . . Largest Inventory Capacity 25 | . 10 10 10 10 10 10 10 10 10 20 20 20 10 10 10 10 20 20 25 25 25 Average Capacity 16 | . 9 10 10 10 10 10 10 10 10 17 20 10 9 10 10 10 15 20 23 25 24 Most Carried 25 | . 10 10 10 10 10 10 10 10 10 20 20 19 10 10 10 10 20 20 25 25 25 Average Carried 15 | . 8 9 9 9 6 9 9 10 9 14 18 10 9 10 9 9 13 19 22 24 22 Final Capacity 25 | 8 10 10 10 10 10 10 10 10 10 20 20 10 10 10 10 10 20 20 25 25 5 Final Carried 25 | 6 10 10 10 10 9 10 10 10 10 20 18 10 10 10 10 10 20 20 25 21 5 Class Distribution -------------------- 24% | Hacker-Mutant 9% | Machinist-Gladiator 9% | Mutant 8% | Machinist-Mutant 8% | Infiltrator-Gladiator 8% | Scavenger-Mutant 7% | Gladiator 6% | Hacker-Sprinter 5% | Hacker-Scout 4% | Wizard-Mutant Dominant Class ---------------- Mutant | -10/Materials Mutant | -9/Materials Scavenger-Mutant | -8/Materials Scavenger-Mutant | -8/Storage Hacker-Sprinter | -7/Factory Hacker-Sprinter | -6/Factory Hacker-Scout | -6/Waste Hacker-Scout | -6/Factory Hacker-Scout | -5/Factory Hacker-Mutant | -4/Factory Hacker-Mutant | -4/Upper Caves Hacker-Mutant | -4/Upper Caves Hacker-Mutant | -4/Zhirov Hacker-Mutant | -3/Proximity Caves Hacker-Mutant | -3/Research Hacker-Mutant | -3/Testing Wizard-Mutant | -2/Research Machinist-Mutant | -2/Quarantine Machinist-Gladiator | -2/Protoforge Infiltrator-Gladiator | -1/Access Gladiator | -1/Command Resources | -11 -10 -9 -8 -8 -7 -6 -6 -6 -5 -4 -4 -4 -4 -3 -3 -3 -2 -2 -2 -1 -1 ----------- Run | Yrd Mat Mat Mat Sto Fac Fac Was Fac Fac Fac Upp Upp Zhi Pro Res Tes Res Qua Frg Acc Com Matter Collected 8046 | 174 141 440 214 356 178 120 241 . 267 191 212 36 110 30 195 400 172 305 2841 833 590 Remotely . | . . . . . . . . . . . . . . . . . . . . . . Salvage Created 14038 | . 273 1181 516 863 277 317 63 . 106 268 223 43 279 . 256 401 445 305 4579 2104 1539 Parts 705 | . 17 68 40 47 11 31 2 . . 19 15 3 7 . 15 22 19 26 221 110 32 Haulers Intercepted 9 | . 1 3 1 1 . 1 . . 1 . . . . . . . 1 . . . . Recyclers Shooed 5 | . 1 . . . . . . . . 1 . . . . . 2 . . . 1 . Parts Field Recycled . | . . . . . . . . . . . . . . . . . . . . . . Retrieved Matter . | . . . . . . . . . . . . . . . . . . . . . . Parts Self-Destructed 19 | . . . . . . . . . . . 15 3 1 . . . . . . . . Prevented . | . . . . . . . . . . . . . . . . . . . . . . Parts Restored 10 | . . . . . . . . . . . . . . . . . . . 10 . . Faulty 10 | . . . . . . . . . . . . . . . . . . . 10 . . Kills | -11 -10 -9 -8 -8 -7 -6 -6 -6 -5 -4 -4 -4 -4 -3 -3 -3 -2 -2 -2 -1 -1 ------- Run | Yrd Mat Mat Mat Sto Fac Fac Was Fac Fac Fac Upp Upp Zhi Pro Res Tes Res Qua Frg Acc Com Combat Hostiles Destroyed 198 | . 6 23 11 14 2 4 . . . 11 9 1 . . 1 . 1 3 64 32 16 Melee 91 | . . . . 1 2 1 . . . 2 7 1 . . 1 . 1 3 39 25 8 Guns 15 | . 6 . . 9 . . . . . . . . . . . . . . . . . Cannons 33 | . . 20 8 4 . . . . . . . . . . . . . . . . 1 AOE 37 | . . 3 3 . . 3 . . . 9 2 . . . . . . . 7 7 3 Classes Destroyed 23 | . 3 6 1 1 1 . 1 . . . . 1 . . . 1 1 . 6 1 . Worker 14 | . . 1 2 . . 2 . . . . . . . . 1 . . . . 8 . Builder 14 | . . 1 . 1 . 1 . . . . . . . . . 3 . . 1 7 . Tunneler 2 | . . . . . . . . . . . . . . . . . 1 . . 1 . Hauler 9 | . 1 3 1 1 . 1 . . 1 . . . . . . . 1 . . . . Recycler 12 | . . 3 . 2 2 1 . . . . . . . . 1 1 1 . . 1 . Minesweeper 1 | . . . . . . . . . . . . 1 . . . . . . . . . Mechanic 3 | . . . . 1 1 . . . . . . . . . . . . . 1 . . Operator 7 | . . 1 2 . . . . . . . . . . . 1 1 . 1 . 1 . Drone 32 | . . . . . . . . . . . . . . . . . . . 11 21 . Watcher 15 | . . 3 . . . . . . . . . . . . 1 1 2 2 . 6 . Swarmer 40 | . 3 6 3 . . 3 . . . 9 8 1 . . . . . . 5 . 2 Saboteur 2 | . . . . . . . . . . . . . . . . . . . 1 1 . Grunt 32 | . 3 11 4 8 . . . . . . . . . . . . . . 6 . . Duelist 3 | . . . 1 . . . . . . . . . . . . . . . 2 . . Protector 1 | . . . . . . . . . . . . . . . . . . . 1 . . Researcher 5 | . . . . . . . . . . . . . . . . 1 . . 4 . . Sentry 25 | . . 6 3 6 . . . . . 2 . . . . . . 1 . 6 1 . Hunter 7 | . . . . . . . . . . . . . . . . . . . 7 . . Programmer 35 | . . . . . 2 1 . . . . 1 . . . 1 . . 3 18 7 2 Q-Series 2 | . . . . . . . . . . . . . . . . . . . . 2 . Enhanced Q-Series 12 | . . . . . . . . . . . . . . . . . . . . . 12 Immortal 4 | . . . . . . . . . . . . . . . . . . . 4 . . Alpha 7 2 | . . . . . . . . . . . . . . . . . . . 2 . . V-Series 1 | . . . . . . . . . . . . . . . . . . . 1 . . Martyr 1 | . . . . . . . 1 . . . . . . . . . . . . . . Best Kill Streak 10 | . 5 7 6 4 3 6 . . 1 5 5 1 . . 2 3 2 2 6 10 3 Combat Bots Only 6 | . 5 6 3 2 1 3 . . . 5 5 1 . . 1 . 1 2 6 6 3 Max Kills in Single Turn 4 | . 1 3 3 1 1 4 1 . 1 3 2 1 . . 1 1 1 1 2 3 1 Gunslinging . | . . . . . . . . . . . . . . . . . . . . . . Exploded 3 | . . 2 2 . . 2 . . . 3 2 . . . . . . . 2 2 1 Melee 2 | . . . . 1 1 1 . . . 1 1 1 . . 1 . 1 1 1 2 1 Uniques/NPCs Destroyed 1 | . . . . . . . . . . . . . . . . . . . . . 1 MAIN.C Shell (-1/Command) Combat | -11 -10 -9 -8 -8 -7 -6 -6 -6 -5 -4 -4 -4 -4 -3 -3 -3 -2 -2 -2 -1 -1 -------- Run | Yrd Mat Mat Mat Sto Fac Fac Was Fac Fac Fac Upp Upp Zhi Pro Res Tes Res Qua Frg Acc Com Hostile Shots Fired 1810 | . 26 107 39 94 106 24 . . 5 71 76 40 . 2 66 17 25 22 397 406 287 Missed 686 | . 5 35 10 35 55 15 . . 4 35 30 19 . 2 25 7 10 12 168 134 85 Intercepted 40 | . . . . . . . . . . . . . . . . . . . . 11 29 Deflected 18 | . . . . . . . . . . . . . . . . . . . 1 16 1 Hits 1124 | . 21 72 29 59 51 9 . . 1 36 46 21 . . 41 10 15 10 229 272 202 Melee 10 | . . . 1 . . . . . . . . . . . . . . . 9 . . Projectile 1114 | . 21 72 28 59 51 9 . . 1 36 46 21 . . 41 10 15 10 220 272 202 AOE 28 | . . . . . . . . . . . . . . . . . . . . 7 21 Critical Strikes 93 | . . 2 4 4 . 1 . . . 2 . . . . 3 . . 1 17 54 5 Actively Blocked 26 | . . . . . . . . . . . . . . . 3 . . 1 17 . 5 Part Disruptions 13 | . . . . . . . . . . . . . . . . 1 . . 5 2 5 Actively Blocked 4 | . . . . . . . . . . . . . . . . . . . . . 4 Damage Taken 21359 | . 196 678 434 927 391 204 . . 19 752 757 333 . . 792 278 347 260 5167 4273 5551 Core 2599 | . 46 71 96 90 105 66 . . . 116 81 67 . . 71 13 51 60 423 573 670 Absorbed by Shields 3056 | . . 168 . . 34 . . . . . . . . . . . . . 998 1567 289 Redirected to Shielding 164 | . . . . . . . . . . . . . . . . . . . . . 164 Ignored by Resistances 342 | . . . . . . . . . . . . . . . . . . . 35 270 37 Regen/Repaired (Parts) 4724 | . . . . . . 180 39 . 20 . . . . . 628 16 62 249 2500 644 386 Core Remaining (%) 76 | 100 81 82 . 66 85 . . 92 100 . . . . 77 . 93 . . 46 . 17 Volleys Fired 383 | . 25 77 26 61 . 4 . 1 3 5 1 . . 1 7 26 9 4 74 12 47 Largest 2 | . 2 2 2 2 . 1 . 1 1 1 1 . . 1 1 1 1 1 1 1 1 Hottest 360 | . 70 128 128 128 . 85 . 85 90 36 36 . . 90 90 90 90 90 90 140 360 Shots Fired 561 | . 50 151 48 117 . 4 . 1 3 5 1 . . 1 7 28 9 4 74 12 46 Gun 130 | . 50 . . 73 . . . . . . . . . . . 7 . . . . . Cannon 345 | . . 149 44 44 . 2 . 1 3 . . . . 1 7 21 9 4 8 6 46 Launcher 86 | . . 2 4 . . 2 . . . 5 1 . . . . . . . 66 6 . Special . | . . . . . . . . . . . . . . . . . . . . . . Kinetic 152 | . 25 47 . 73 . . . . . . . . . . . 7 . . . . . Thermal 322 | . 25 102 44 44 . 2 . 1 3 . . . . 1 7 20 9 4 8 6 46 Explosive 14 | . . 2 4 . . 2 . . . 5 1 . . . . . . . . . . Electromagnetic 73 | . . . . . . . . . . . . . . . . 1 . . 66 6 . Robot Hit Streak 25 | . 9 11 10 25 . 4 . . . . . . . . . 5 . . 2 2 15 Robot Miss Streak 5 | . 4 5 2 2 . . . . . . . . . . . 1 . . 2 4 4 Penetration Max 1 | . . . . . . . . . . . . . . . . . . . . 1 1 Secondary Targets 1 | . . . . 1 . . . . . . . . . . . . . . . . . Max Gunslinging Chain 1 | . . . . 1 . . . . . . . . . . . . . . . . . Shots Hit Robots 665 | . 29 86 30 91 12 11 2 . 5 16 12 3 7 1 21 19 8 10 156 89 57 Core Hits 354 | . 12 39 26 35 5 9 1 . 1 13 8 2 1 . 4 10 6 6 98 52 26 Critical Kills 4 | . . . . . . . . . . . . . . . . . . . . . 4 Critical Parts Destroyed . | . . . . . . . . . . . . . . . . . . . . . . Critical Strikes 59 | . 1 7 . . 1 1 . . 1 2 1 . . . 4 1 1 1 14 8 16 Burn 1 | . 1 . . . . . . . . . . . . . . . . . . . . Meltdown 4 | . . . . . . . . . . . . . . . . . . . . . 4 Blast 7 | . . 7 . . . . . . . . . . . . . . . . . . . Sever 36 | . . . . . 1 1 . . 1 2 1 . . . 4 1 1 1 14 8 1 Impale 11 | . . . . . . . . . . . . . . . . . . . . . 11 Melee Attacks 744 | . . . . . 16 24 2 2 18 25 21 4 7 6 46 35 30 55 242 173 38 Kinetic 6 | . . . . . . . . . . . . . . . . . . . 6 . . Impact . | . . . . . . . . . . . . . . . . . . . . . . Slashing 715 | . . . . . 16 24 2 2 18 25 21 4 7 6 46 35 30 55 236 173 15 Piercing 23 | . . . . . . . . . . . . . . . . . . . . . 23 Sneak Attacks 60 | . . . . . 4 5 2 . 2 1 . 1 . . 3 5 4 1 18 14 . Combat Hostiles 4 | . . . . . . . . . . . . . . . . . 1 . 3 . . Follow-up Attacks 85 | . . . . . . . . . . . . . . . . . 1 5 48 26 5 Damage Inflicted 43320 | . 406 2157 848 1595 551 909 133 . 285 1375 645 184 684 49 1058 1540 690 717 13858 7870 7766 Guns 1452 | . 385 . . 952 . . . . . . . . . . . 115 . . . . . Cannons 6236 | . . 1797 580 628 . . . . . . . . . . . 78 . . . 153 3000 Explosions 8802 | . . 352 268 . . 347 . . . 650 129 . . . . . . . 3270 1051 2735 Melee 26751 | . . . . . 551 562 133 . 285 725 516 184 684 49 1058 1347 690 717 10588 6631 2031 Ramming 79 | . 21 8 . 15 . . . . . . . . . . . . . . . 35 . Kinetic 2139 | . 212 595 . 952 . . . . . . . . . . . 115 . . 265 . . Thermal 8686 | . 173 1202 580 628 . . . . . . . . . . . 36 . . 179 153 5735 Explosive 1746 | . . 352 268 . . 347 . . . 650 129 . . . . . . . . . . Electromagnetic 4184 | . . . . . . . . . . . . . . . . 42 . . 3091 1051 . Impact . | . . . . . . . . . . . . . . . . . . . . . . Slashing 25097 | . . . . . 551 562 133 . 285 725 516 184 684 49 1058 1347 690 717 10323 6631 642 Piercing 1389 | . . . . . . . . . . . . . . . . . . . . . 1389 Highest Corruption 40 | . . . . . . . . 3 . . 1 1 1 1 6 12 . 1 40 11 14 Average Corruption 8 | . . . . . . . . 2 . . 1 1 1 1 4 7 . 1 13 2 7 Corruption Purged 15 | . . . . . . . . . . . . . . . . . . 1 . . 14 Corruption Blocked . | . . . . . . . . . . . . . . . . . . . . . . Effects 206 | . . . . . . . . 1 . . 1 4 . 1 6 28 . 1 118 17 29 Message Errors 42 | . . . . . . . . . . . . 1 . 1 1 5 . . 25 2 7 Matter Fused 52 | . . . . . . . . 1 . . . 2 . . 1 4 . . 37 3 4 Heat Flow Errors 32 | . . . . . . . . . . . . . . . 3 3 . . 19 2 5 Energy Discharges 18 | . . . . . . . . . . . . . . . . 2 . 1 12 . 3 Parts Rejected 5 | . . . . . . . . . . . 1 . . . . . . . 1 2 1 Parts Fused 3 | . . . . . . . . . . . . . . . . 1 . . 2 . . Data Loss (minor) 28 | . . . . . . . . . . . . 1 . . 1 3 . . 15 3 5 Data Loss (major) 8 | . . . . . . . . . . . . . . . . 2 . . 4 1 1 Misfires 3 | . . . . . . . . . . . . . . . . 3 . . . . . Alerts 4 | . . . . . . . . . . . . . . . . 3 . . . . 1 Misdirections 9 | . . . . . . . . . . . . . . . . 1 . . 3 4 1 Weapon Failures 2 | . . . . . . . . . . . . . . . . 1 . . . . 1 Overload Shots 1 | . . . . . . . . . . . . . . . . . . . . . 1 Overflow Damage 4567 | . . 13 . . 34 116 . . . 93 102 52 398 19 157 81 14 72 1652 992 772 Projectiles 636 | . . 3 . . . . . . . . . . . . . 8 . . . 20 605 Explosions 374 | . . 10 . . . 27 . . . 34 28 . . . . . . . 55 161 59 Melee 3557 | . . . . . 34 89 . . . 59 74 52 398 19 157 73 14 72 1597 811 108 Knockbacks 3 | . . 3 . . . . . . . . . . . . . . . . . . . Impact . | . . . . . . . . . . . . . . . . . . . . . . Kinetic 3 | . . 3 . . . . . . . . . . . . . . . . . . . Secondary . | . . . . . . . . . . . . . . . . . . . . . . Self-Inflicted Damage 501 | . . . . . . . . . . . . . . . . 125 . . 359 17 . Shots 18 | . . . . . . . . . . . . . . . . 1 . . 17 . . Rammed 3 | . . . . 2 . . . . . . . . . . . . . . . 1 . Targets Rammed 10 | . 2 3 . 4 . . . . . . . . . . . . . . . 1 . Kicked 5 | . 2 3 . . . . . . . . . . . . . . . . . . . Crushed 2 | . . . . 2 . . . . . . . . . . . . . . . . . Highest Temperature 367 | . 97 164 279 323 1 68 . 34 42 213 6 . 128 76 367 270 308 225 206 344 223 Average Temperature 69 | . 30 20 100 113 1 32 . 20 27 89 4 . 47 32 56 60 79 38 88 61 117 Received Heat Transfer 3079 | . 66 192 216 504 70 9 . . 9 135 27 30 . . 12 57 9 36 242 987 478 Thermoelectric Energy+ 1361 | . . . . . . . . . . . . . . . . . . . 47 140 1174 Effects 17 | . . . . . . . . . . 3 . . . . 3 . 3 . . 1 7 Shutdowns 1 | . . . . . . . . . . . . . . . 1 . . . . . . Energy Bleed 6 | . . . . . . . . . . . . . . . 1 . . . . 1 4 Interference 9 | . . . . . . . . . . 3 . . . . . . 3 . . . 3 Short Circuit 1 | . . . . . . . . . . . . . . . 1 . . . . . . Siege Activations . | . . . . . . . . . . . . . . . . . . . . . . Martial Activations . | . . . . . . . . . . . . . . . . . . . . . . Shielding Activations . | . . . . . . . . . . . . . . . . . . . . . . Robots Disrupted . | . . . . . . . . . . . . . . . . . . . . . . Combat Hostiles . | . . . . . . . . . . . . . . . . . . . . . . Robots Corrupted 18 | . . . . . . . . . . . . . . . . . . . 17 1 . Combat Hostiles 17 | . . . . . . . . . . . . . . . . . . . 17 . . Parts Fried 31 | . . . . . . . . . . . . . . . . . . . 28 3 . Impact Corruptions . | . . . . . . . . . . . . . . . . . . . . . . Robots Melted 4 | . . . . . . . . . . . . . . . . . . . . . 4 Combat Hostiles 4 | . . . . . . . . . . . . . . . . . . . . . 4 Parts Melted 10 | . 1 4 1 3 . . . . . . . . . . . . . . . . 1 Heat Transferred 9166 | . 592 2479 1147 1221 . . . . . . . . . . . 37 . . 50 100 3540 Parts Sabotaged . | . . . . . . . . . . . . . . . . . . . . . . Parts Stolen . | . . . . . . . . . . . . . . . . . . . . . . Parts Stripped 14 | . . . . . . . . . . . . . . . . . . . 14 . . Power Chain Reactions 2 | . . . . . . . . . . . . . . . . . . . 2 . . Alert | -11 -10 -9 -8 -8 -7 -6 -6 -6 -5 -4 -4 -4 -4 -3 -3 -3 -2 -2 -2 -1 -1 ------- Run | Yrd Mat Mat Mat Sto Fac Fac Was Fac Fac Fac Upp Upp Zhi Pro Res Tes Res Qua Frg Acc Com Maximum Alert Level 5 | . . 1 1 1 . 1 . . . 1 . . . . 2 . . . 5 5 5 Low Security (%) 63 | . 100 85 83 93 100 92 100 100 100 74 . . . . 53 100 100 100 13 . 72 Level 1 6 | . . 14 16 6 . 7 . . . 25 . . . . 31 . . . 3 . . Level 2 3 | . . . . . . . . . . . . . . . 15 . . . 11 . . Level 3 9 | . . . . . . . . . . . . . . . . . . . 40 10 . Level 4 9 | . . . . . . . . . . . . . . . . . . . 16 57 4 Level 5 7 | . . . . . . . . . . . . . . . . . . . 14 24 22 High Security . | . . . . . . . . . . . . . . . . . . . . 7 . Max Security . | . . . . . . . . . . . . . . . . . . . . . . Peak Influence 2327 | . 167 363 228 210 96 226 79 51 56 322 . . . . 450 166 106 57 1849 2327 1666 Initial 1482 | . . 42 145 83 77 40 73 . . . . . . . 450 . . 9 12 1108 1482 Average 435 | . 87 136 175 120 42 86 22 17 9 129 . . . . 161 35 29 24 892 1462 804 Influence Increases 10196 | . 267 737 362 405 204 421 6 135 136 632 240 85 10 . 651 396 234 348 2600 2031 296 Destroy 0b10 Robot/C 4620 | . 120 460 220 280 40 80 . 60 . 220 180 20 . . 20 20 20 60 1580 1060 180 Destroy 0b10 Robot/NC 465 | . 10 60 25 25 15 25 . . 5 . . 5 10 . 20 35 25 15 70 120 . Destroy Leader 848 | . 32 132 62 82 20 12 . 20 2 40 30 . . . 12 2 16 24 170 152 40 Allied During Kill 314 | . . . . . . . . 31 . . . . . . . . . . 87 163 33 Successful Hack 291 | . . 6 . . 8 41 . 6 69 24 . . . . 64 28 20 9 . 16 . Select Force Hacks 60 | . 60 . . . . . . . . . . . . . . . . . . . . Disable Machine 630 | . . 30 15 15 30 15 . . . . . . . . 15 135 . 105 150 105 15 Anti-Garrison Action 150 | . . . . . . . . . . . . . . . . . . . 150 . . Destroy Structure 673 | . . 19 25 3 1 23 6 3 30 78 . . . . 40 146 63 60 48 100 28 Advance Influence 450 | . . . . . . . . . . . . . . . 450 . . . . . . Partial Spotted 270 | . . . 15 . . 15 . 15 30 15 . . . . 15 30 30 . 45 60 . Lose Combat Pursuer 1425 | . 45 30 . . 90 210 . . . 255 30 60 . . 15 . 60 75 300 255 . Influence Decreases 8598 | . 166 493 510 430 293 293 217 135 136 320 362 275 10 . 651 394 220 342 773 1563 1015 Entered New Map 2397 | . . 59 200 114 95 43 138 . . . 116 37 . . . . 2 7 10 741 835 Time Decay 4829 | . 156 404 310 286 188 220 59 59 136 190 206 228 10 . 335 244 208 305 663 482 140 Search Patrol Dispatched 200 | . . . . . . . . . . 100 . . . . 100 . . . . . . Lost Part 412 | . 10 30 . 30 10 10 . . . 20 40 10 . . 12 . 10 . 80 110 40 Lost Ally 226 | . . . . . . 20 20 76 . 10 . . . . . . . . 20 80 . Purge Threat 534 | . . . . . . . . . . . . . . . 204 150 . 30 . 150 . Squads Dispatched 72 | . 2 4 1 3 2 1 . . 2 4 . . . . 3 4 5 4 20 15 2 Investigation 12 | . 2 1 . . . . . . 1 2 . . . . 1 1 1 1 1 1 . Extermination 28 | . . . . . 1 1 . . 1 1 . . . . 2 2 3 3 6 7 1 Reinforcement 16 | . . 3 1 1 1 . . . . 1 . . . . . 1 1 . 4 3 . Assault 14 | . . . . . . . . . . . . . . . . . . . 9 4 1 Garrison 2 | . . . . 2 . . . . . . . . . . . . . . . . . Intercept . | . . . . . . . . . . . . . . . . . . . . . . Searches Triggered 2 | . . . . . . . . . . 1 . . . . 1 . . . . . . Unchained Authorized 1 | . . . . . . . . . . . . . . . . . . . . 1 . Construction Impeded 3 | . . 1 . . . . . . . . . . . . . . . . 1 1 . Haulers Reinforced . | . . . . . . . . . . . . . . . . . . . . . . Active Scanning Responses . | . . . . . . . . . . . . . . . . . . . . . . Cargo Convoy Interrupts . | . . . . . . . . . . . . . . . . . . . . . . Stealth | -11 -10 -9 -8 -8 -7 -6 -6 -6 -5 -4 -4 -4 -4 -3 -3 -3 -2 -2 -2 -1 -1 --------- Run | Yrd Mat Mat Mat Sto Fac Fac Was Fac Fac Fac Upp Upp Zhi Pro Res Tes Res Qua Frg Acc Com Distress Signals 29 | . 1 6 2 1 . . . . . 2 . . . . 4 . 2 1 . 1 9 Communications Jammed 32 | . . . . . . . . . . . . . . . 5 14 1 1 3 8 . Distress Signals 31 | . . . . . . . . . . . . . . . 5 14 1 1 3 7 . Times Spotted 572 | . 10 32 16 19 10 14 2 2 13 30 14 12 . 9 26 13 13 17 125 142 53 Peak Tracking Total 17 | . 6 6 5 4 7 7 1 1 6 12 5 11 . 4 8 3 6 4 8 17 10 Tactical Retreats 66 | . 2 2 . . 2 6 . . 1 4 2 3 . 2 7 3 4 3 10 13 2 ECM-based Alert Blocks 74 | . . . . . . . . . 3 . 1 8 . 8 14 5 4 3 4 24 . Traps | -11 -10 -9 -8 -8 -7 -6 -6 -6 -5 -4 -4 -4 -4 -3 -3 -3 -2 -2 -2 -1 -1 ------- Run | Yrd Mat Mat Mat Sto Fac Fac Was Fac Fac Fac Upp Upp Zhi Pro Res Tes Res Qua Frg Acc Com Traps Triggered 31 | . . . 1 2 1 3 . 2 . . . . . . . 2 1 1 12 6 . Indirectly 2 | . . . . . . . . . . . . . . . . 1 . . . 1 . Trap Hack Attempts . | . . . . . . . . . . . . . . . . . . . . . . Triggered . | . . . . . . . . . . . . . . . . . . . . . . Disarmed . | . . . . . . . . . . . . . . . . . . . . . . Reprogrammed . | . . . . . . . . . . . . . . . . . . . . . . Reused . | . . . . . . . . . . . . . . . . . . . . . . Traps Extracted . | . . . . . . . . . . . . . . . . . . . . . . Installed 8 | . . . . . . . . . . . . 8 . . . . . . . . . Triggered . | . . . . . . . . . . . . . . . . . . . . . . Machines | -11 -10 -9 -8 -8 -7 -6 -6 -6 -5 -4 -4 -4 -4 -3 -3 -3 -2 -2 -2 -1 -1 ---------- Run | Yrd Mat Mat Mat Sto Fac Fac Was Fac Fac Fac Upp Upp Zhi Pro Res Tes Res Qua Frg Acc Com Machines Disabled 50 | . . 3 1 1 2 1 . . . . . . . . 1 9 . 7 16 7 2 Max in Single Turn 3 | . . 1 1 1 1 1 . . . . . . . . 1 3 . 1 2 1 1 Garrison Access 8 | . . . . . 2 . . 1 1 . . . . . 1 1 . 1 1 . . Machines Repaired . | . . . . . . . . . . . . . . . . . . . . . . Machines Dismantled . | . . . . . . . . . . . . . . . . . . . . . . Machines Sabotaged . | . . . . . . . . . . . . . . . . . . . . . . Overloaded Fab Kills . | . . . . . . . . . . . . . . . . . . . . . . Hacking | -11 -10 -9 -8 -8 -7 -6 -6 -6 -5 -4 -4 -4 -4 -3 -3 -3 -2 -2 -2 -1 -1 --------- Run | Yrd Mat Mat Mat Sto Fac Fac Was Fac Fac Fac Upp Upp Zhi Pro Res Tes Res Qua Frg Acc Com Machines Accessed 98 | . 3 3 . 1 6 7 . 4 11 3 1 . 4 . 11 16 6 9 3 7 3 Terminals 53 | . 1 3 . 1 4 3 . 1 5 1 . . . . 6 10 5 5 1 4 3 Fabricators 11 | . . . . . . 1 . 1 2 2 . . . . 1 2 1 . . 1 . Repair Stations 7 | . . . . . . 2 . . 1 . . . . . 2 . . 1 1 . . Recycling Units 5 | . 2 . . . . 1 . 1 1 . . . . . . . . . . . . Scanalyzers 7 | . . . . . . . . . 1 . . . . . 1 3 . 2 . . . Garrison Access 10 | . . . . . 2 . . 1 1 . . . . . 1 1 . 1 1 2 . Total Hacks 249 | . 5 8 . 2 10 15 . 7 28 14 1 . 17 . 32 38 25 27 3 13 4 Successful 144 | . 3 1 . 1 4 10 . 6 16 10 1 . 17 . 24 15 20 11 1 3 1 Failed 105 | . 2 7 . 1 6 5 . 1 12 4 . . . . 8 23 5 16 2 10 3 Catastrophic 18 | . . 1 . . 1 2 . . . . . . . . . 2 2 3 1 4 2 Database Lockouts . | . . . . . . . . . . . . . . . . . . . . . . Manual 95 | . 3 4 . 2 5 4 . 3 14 7 . . . . 4 14 16 18 . . 1 Terminals 146 | . 2 8 . 2 8 7 . 4 14 6 . . . . 16 28 18 20 1 8 4 Fabricators 31 | . . . . . . 1 . 1 5 8 . . . . 2 4 7 . . 3 . Repair Stations 24 | . . . . . . 6 . . 3 . . . . . 12 . . 2 1 . . Recycling Units 6 | . 3 . . . . 1 . 1 1 . . . . . . . . . . . . Scanalyzers 13 | . . . . . . . . . 3 . . . . . 1 5 . 4 . . . Garrison Access 11 | . . . . . 2 . . 1 2 . . . . . 1 1 . 1 1 2 . Terminal Hacks 74 | . 1 . . 1 2 3 . 3 5 3 1 . 17 . 9 7 12 6 1 2 1 Record 6 | . . . . . . 1 . . . . . . 5 . . . . . . . . Part Schematic 8 | . . . . . . . . . 1 . . . 4 . . 3 . . . . . Robot Analysis 8 | . . . . . . . . . . . . . 4 . . . 4 . . . . Prototype ID Bank 4 | . . . . . . . . . . . . . 4 . . . . . . . . Open Door 2 | . . . . . . . . . . . 1 . . . . 1 . . . . . Level Access Points 4 | . . . . 1 . . . 1 1 . . . . . . . . 1 . . . Branch Access Points 6 | . . . . . . 1 . 1 1 1 . . . . 1 . 1 . . . . Machine Index 1 | . . . . . . . . . . . . . . . 1 . . . . . . Terminal Index 2 | . . . . . . . . . . 1 . . . . . . 1 . . . . Fabricator Index 3 | . . . . . . . . . . 1 . . . . 1 . 1 . . . . Alert Level 2 | . . . . . . . . . . . . . . . . . 1 . . . 1 Unreport Threat 6 | . . . . . . . . . . . . . . . 2 1 . 2 . 1 . Locate Traps 1 | . . . . . . . . . . . . . . . 1 . . . . . . Transport Status 2 | . . . . . 1 . . . 1 . . . . . . . . . . . . Recall Investigation 1 | . . . . . . . . . . . . . . . . . . 1 . . . Recall Extermination 5 | . . . . . . . . . . . . . . . 1 1 2 1 . . . Hauler Manifests 4 | . . . . . 1 1 . 1 1 . . . . . . . . . . . . Registered Components 3 | . 1 . . . . . . . . . . . . . 1 . . . . 1 . Registered Prototypes 1 | . . . . . . . . . . . . . . . . . 1 . . . . Zone Layout 3 | . . . . . . . . . . . . . . . 1 . 1 1 . . . Proto ID Catalog 1 | . . . . . . . . . . . . . . . . . . . 1 . . Protovariant Controls 1 | . . . . . . . . . . . . . . . . 1 . . . . . Fabricator Hacks 18 | . . . . . . . . 1 2 4 . . . . 1 3 6 . . 1 . Network Status 2 | . . . . . . . . 1 1 . . . . . . . . . . . . Load Schematic 10 | . . . . . . . . . . 3 . . . . 1 2 3 . . 1 . Build 6 | . . . . . . . . . 1 1 . . . . . 1 3 . . . . Repair Station Hacks 20 | . . . . . . 6 . . 2 . . . . . 11 . . 1 . . . Scan Component 11 | . . . . . . 3 . . 1 . . . . . 6 . . 1 . . . Repair 9 | . . . . . . 3 . . 1 . . . . . 5 . . . . . . Recycling Unit Hacks 3 | . . . . . . 1 . 1 1 . . . . . . . . . . . . Retrieve Components 3 | . . . . . . 1 . 1 1 . . . . . . . . . . . . Scanalyzer 8 | . . . . . . . . . 2 . . . . . 1 2 . 3 . . . Insert Component 4 | . . . . . . . . . 1 . . . . . . 1 . 2 . . . Analyze 1 | . . . . . . . . . 1 . . . . . . . . . . . . Retrieve Study 3 | . . . . . . . . . . . . . . . 1 1 . 1 . . . Garrison Access Hacks 7 | . . . . . 2 . . 1 1 . . . . . 1 1 . 1 . . . Seal Access 7 | . . . . . 2 . . 1 1 . . . . . 1 1 . 1 . . . Unauthorized Hacks 14 | . 2 1 . . . . . . 3 3 . . . . 1 2 2 . . . . Terminals 6 | . . 1 . . . . . . 2 1 . . . . . 1 1 . . . . Assimilate 5 | . . 1 . . . . . . 2 1 . . . . . . 1 . . . . Botnet 1 | . . . . . . . . . . . . . . . . 1 . . . . . Fabricators 6 | . . . . . . . . . 1 2 . . . . 1 1 1 . . . . Prioritize 2 | . . . . . . . . . . 1 . . . . . . 1 . . . . Recompile 4 | . . . . . . . . . 1 1 . . . . 1 1 . . . . . Repair Stations . | . . . . . . . . . . . . . . . . . . . . . . Recycling Units 2 | . 2 . . . . . . . . . . . . . . . . . . . . Tunnel 2 | . 2 . . . . . . . . . . . . . . . . . . . . Scanalyzers . | . . . . . . . . . . . . . . . . . . . . . . Garrison Access . | . . . . . . . . . . . . . . . . . . . . . . Data Cores Recovered 1 | . . . . . . . . . . . . . . . . . . . . 1 . Used 1 | . . . . . . . . . . . . . . . . . . . . 1 . Hacking Detections 72 | . 1 2 . 1 3 5 . 2 10 3 . . . . 9 11 6 7 2 7 3 Full Trace Events 5 | . . 1 . . . . . . . 1 . . . . . . 1 1 . 1 . Feedback Events . | . . . . . . . . . . . . . . . . . . . . . . Feedback Blocked 1 | . . . . . . . . . . 1 . . . . . . . . . . . Robot Schematics Acquired 3 | . . . . . . . . . . . . . . . . . . . 3 . . Robots Built . | . . . . . . . . . . . . . . . . . . . . . . Authchips . | . . . . . . . . . . . . . . . . . . . . . . Time . | . . . . . . . . . . . . . . . . . . . . . . Total Robot Build Rating . | . . . . . . . . . . . . . . . . . . . . . . Part Schematics Acquired 17 | . . . . . . . . . 2 . . . 4 . . 7 . . 4 . . Parts Built 10 | . . . . . . . . . 2 2 . . . . . 2 4 . . . . Authchips 4 | . . . . . . . . . . 1 . . . . . 1 2 . . . . Time 275 | . . . . . . . . . 69 69 . . . . . 46 91 . . . . Total Part Build Rating 88 | . . . . . . . . . 18 18 . . . . . 18 34 . . . . Part Studies Acquired 3 | . . . . . . . . . . . . . . . 1 1 . 1 . . . Parts Repaired 9 | . . . . . . 3 . . 1 . . . . . 5 . . . . . . Time 316 | . . . . . . 101 . . 31 . . . . . 184 . . . . . . Parts Recycled . | . . . . . . . . . . . . . . . . . . . . . . Recycled Matter . | . . . . . . . . . . . . . . . . . . . . . . Retrieved Matter . | . . . . . . . . . . . . . . . . . . . . . . Retrieved Components 8 | . . . . . . 7 . . 1 . . . . . . . . . . . . Parts Scanalyzed 1 | . . . . . . . . . 1 . . . . . . . . . . . . Part Schematics Acquired 1 | . . . . . . . . . 1 . . . . . . . . . . . . Parts Damaged . | . . . . . . . . . . . . . . . . . . . . . . Bothacking | -11 -10 -9 -8 -8 -7 -6 -6 -6 -5 -4 -4 -4 -4 -3 -3 -3 -2 -2 -2 -1 -1 ------------ Run | Yrd Mat Mat Mat Sto Fac Fac Was Fac Fac Fac Upp Upp Zhi Pro Res Tes Res Qua Frg Acc Com Used RIF Installer . | . . . . . . . . . . . . . . . . . . . . . . Robots Hacked . | . . . . . . . . . . . . . . . . . . . . . . Non-combat . | . . . . . . . . . . . . . . . . . . . . . . Combat . | . . . . . . . . . . . . . . . . . . . . . . Robot Hacks Applied . | . . . . . . . . . . . . . . . . . . . . . . Relay Couplers Released . | . . . . . . . . . . . . . . . . . . . . . . Fabnet Peak Effective % . | . . . . . . . . . . . . . . . . . . . . . . Robots Rewired 1 | . . . . . . 1 . . . . . . . . . . . . . . . Allies Hacked 1 | . . . . . . . . 1 . . . . . . . . . . . . . Hacks Repelled . | . . . . . . . . . . . . . . . . . . . . . . Allies | -11 -10 -9 -8 -8 -7 -6 -6 -6 -5 -4 -4 -4 -4 -3 -3 -3 -2 -2 -2 -1 -1 -------- Run | Yrd Mat Mat Mat Sto Fac Fac Was Fac Fac Fac Upp Upp Zhi Pro Res Tes Res Qua Frg Acc Com Total Allies 23 | . . . . . . 1 20 . 1 1 . . . . . . . . . . . Largest Group 20 | . . . . . . 1 20 6 1 1 . . . . . . . . . . . Highest-Rated Group 742 | . . . . . . 29 742 150 26 26 . . . . . . . . . . . Highest-Rated Ally 50 | . . . . . . 29 50 25 26 26 . . . . . . . . . . . Total Orders 39 | . . . . . . . . . . . . . . . . . . . 13 19 7 STAY 1 | . . . . . . . . . . . . . . . . . . . . . 1 FOLLOW 1 | . . . . . . . . . . . . . . . . . . . . . 1 RETURN 37 | . . . . . . . . . . . . . . . . . . . 13 19 5 Ally Attacks 288 | . . . . . . 9 24 34 . . . . . . . . . . 87 80 54 Total Damage 14678 | . . . . . . 115 726 464 . . . . . . . . . . 4791 4961 3621 Kills 69 | . . . . . . . 2 3 . . . . . . . . . . 24 34 6 Allies Corrupted 8 | . . . . . . . . . . . . . . . . . . . 3 2 3 Allies Melted 7 | . . . . . . . . . . . . . . . . . . . . 1 6 Intel | -11 -10 -9 -8 -8 -7 -6 -6 -6 -5 -4 -4 -4 -4 -3 -3 -3 -2 -2 -2 -1 -1 ------- Run | Yrd Mat Mat Mat Sto Fac Fac Was Fac Fac Fac Upp Upp Zhi Pro Res Tes Res Qua Frg Acc Com Active Infowar (turns) 10466 | . . . . . 247 409 189 169 629 352 375 656 155 271 947 966 668 772 1921 1327 413 Optics 1016 | . . . . . . 24 189 169 461 . . . . . . . . . . . 173 Sensors 7876 | . . . . . 247 409 116 169 629 352 375 656 155 271 713 536 668 685 997 746 152 Terrain 228 | . . . . . . . . . . . . . . . 140 88 . . . . . Seismic 285 | . . . . . . . . . . . . . . . . 285 . . . . . Cloaking 1890 | . . . . . . . . . . . . . . . . . . . 738 917 235 Jamming 3831 | . . . . . . . . . . . . . . . 428 963 554 470 527 889 . ECM 2505 | . . . . . . . . . 35 . 32 212 . 179 760 706 154 29 278 110 10 Robot Analysis Total 8 | . . . . . . . . . . . . . 4 . . . 4 . . . . Derelict Logs Recovered 3 | . . . . . . . . . . . 2 1 . . . . . . . . . Drone Launches 97 | . . . . . . . . . . . . . . . . . . . 36 48 13 Drone Recoveries 85 | . . . . . . . . . . . . . . . . . . . 33 43 9 Exploration | -11 -10 -9 -8 -8 -7 -6 -6 -6 -5 -4 -4 -4 -4 -3 -3 -3 -2 -2 -2 -1 -1 ------------- Run | Yrd Mat Mat Mat Sto Fac Fac Was Fac Fac Fac Upp Upp Zhi Pro Res Tes Res Qua Frg Acc Com Turns Passed 15380 | . 422 1026 694 621 415 506 189 169 629 398 431 671 155 271 947 966 668 816 3014 1339 1033 Spaces Moved 18258 | 1 260 463 362 256 885 1015 314 400 1274 538 459 481 196 473 1138 1383 932 1272 2733 2351 1072 Core 6 | . . . . . 5 . . . . . . 1 . . . . . . . . . Treads 698 | . . 80 362 256 . . . . . . . . . . . . . . . . . Legs 644 | 1 260 383 . . . . . . . . . . . . . . . . . . . Wheels . | . . . . . . . . . . . . . . . . . . . . . . Hover 12799 | . . . . . . . . . . 310 459 480 196 473 1138 1383 932 1272 2733 2351 1072 Flight 4111 | . . . . . 880 1015 314 400 1274 228 . . . . . . . . . . . Fastest Speed 25 | 120 120 120 160 160 28 28 28 27 25 25 52 51 51 51 47 47 42 42 36 36 37 Average Speed 48 | 120 120 151 160 160 29 28 28 27 25 39 62 52 51 51 49 48 43 42 41 38 38 Slowest Speed 800 | 120 120 190 160 160 250 28 96 28 25 52 151 800 61 51 51 154 48 142 148 102 109 Overloaded Moves . | . . . . . . . . . . . . . . . . . . . . . . Propulsion Burnouts . | . . . . . . . . . . . . . . . . . . . . . . Robots Hopped 17 | . . . . . 6 4 . . 7 . . . . . . . . . . . . Potential Cave-ins 4 | . . . . . . . . . . . . . . . . . 2 . . . 2 Cave-ins Triggered . | . . . . . . . . . . . . . . . . . . . . . . Teleports 4 | . . . . . . . . . . . . . . . . . 1 . 2 1 . Exploration Rate (%) 44 | 2 42 46 32 47 27 24 96 19 23 11 61 60 60 67 29 95 32 84 30 52 29 Regions Visited 21 Branch Regions 9 Pre-discovered Areas 8 | . 2 . . . . . . . . . 2 1 3 . . . . . . . . Known Exits Taken 15 | . . . . 1 1 . . 1 1 1 1 1 1 1 1 1 1 1 1 1 . Unknown Exits Taken 4 | 1 1 1 1 . . . . . . . . . . . . . . . . . . Scrap Searched 4 | . . . . . . . . . . . 1 1 . 2 . . . . . . . Spaces Dug 179 | . . 10 . . 1 17 . 2 12 13 . 1 . 2 15 18 16 17 14 26 15 Terrain Destroyed 422 | . . 18 23 . 1 25 . 3 15 39 4 1 . 3 21 100 25 21 20 31 72 Melee 132 | . . . . . 1 11 . 2 12 7 . 1 . 2 14 11 16 17 12 26 . Projectile 79 | . . 5 . . . 2 . 1 3 . . . . 1 7 16 9 4 8 5 18 AOE 211 | . . 13 23 . . 12 . . . 32 4 . . . . 73 . . . . 54 Terrain Rammed . | . . . . . . . . . . . . . . . . . . . . . . Walls Destroyed . | . . . . . . . . . . . . . . . . . . . . . . Machines Disabled . | . . . . . . . . . . . . . . . . . . . . . . Actions | -11 -10 -9 -8 -8 -7 -6 -6 -6 -5 -4 -4 -4 -4 -3 -3 -3 -2 -2 -2 -1 -1 --------- Run | Yrd Mat Mat Mat Sto Fac Fac Was Fac Fac Fac Upp Upp Zhi Pro Res Tes Res Qua Frg Acc Com Total 23580 | . 322 635 432 365 1002 1186 409 451 1546 683 572 894 238 490 1461 1609 1144 1483 4342 2708 1608 Wait 3268 | . 14 37 9 18 66 96 86 39 222 81 73 390 . 8 231 98 123 105 1113 112 347 Move 18205 | . 259 462 361 255 873 1007 313 399 1260 537 458 480 195 472 1137 1382 931 1271 2732 2350 1071 Hop 15 | . . . . . 5 4 . . 6 . . . . . . . . . . . . Pick Up 200 | . 8 10 6 1 3 6 2 1 11 11 2 . 12 . 8 9 22 15 36 16 21 Fast Attach 152 | . 3 11 6 7 5 8 . 2 1 4 1 . 7 . 8 21 3 6 34 9 16 Attach 95 | . 1 1 2 . 4 3 . . 2 3 4 2 3 . 3 2 7 1 19 15 23 Detach 53 | . 1 1 . . 3 4 . . 1 2 1 1 1 . 1 2 3 1 10 3 18 Swap 324 | . 2 12 8 8 11 18 4 4 13 12 11 1 1 3 14 8 12 25 88 49 20 Drop 237 | . 7 21 14 11 7 5 2 3 9 3 . 8 11 . 6 26 9 16 51 15 13 Fire 383 | . 25 77 26 61 . 4 . 1 3 5 1 . . 1 7 26 9 4 74 12 47 Melee 584 | . . . . . 16 24 2 2 18 25 21 4 7 6 46 35 25 39 177 107 30 Ram 1 | . . . . . . . . . . . . . . . . . . . . 1 . Kick 5 | . 2 3 . . . . . . . . . . . . . . . . . . . Crush 4 | . . . . 4 . . . . . . . . . . . . . . . . . Escape Stasis 33 | . . . . . 9 . . . . . . . . . . . . . 8 16 . Rewire 10 | . . . . . . 7 . . . . . . 1 . . . . . . . 2 Trap 8 | . . . . . . . . . . . . 8 . . . . . . . . . Miscellaneous 3 | . . . . . . . . . . . . . . . . . . . . 3 . Route ------- -11/Scrapyard -10/Materials -9/Materials (discovered 2 exits: [*Mat] / [*Min]) -8/Materials -8/Storage -7/Factory (discovered 2 exits: *Fac / *Low) -6/Factory (discovered 2 exits: *Low x2) -6/Waste -6/Factory (discovered 6 exits: *Fac x4 / *Low x2) -5/Factory (discovered 6 exits: *Fac x4 / *Upp x2) -4/Factory (discovered 4 exits: *Upp x2 / Ext x2) -4/Upper Caves -4/Upper Caves -4/Zhirov -3/Proximity Caves -3/Research (discovered 3 exits: Arm / *Tes x2) -3/Testing -2/Research (discovered 2 exits: *Qua x2) -2/Quarantine (discovered 3 exits: Acc / [*Sec] / *Frg) -2/Protoforge -1/Access -1/Command (discovered 2 exits: *Sur x2) To Epsilon Eridani History --------- Turn | Location | Event 1 | -11/Scrapyard | Discovered new exit (range 0) 1 | -11/Scrapyard | Entered Materials 318 | -10/Materials | Build established: Mutant 379 | -10/Materials | Discovered new exit (range 16) 423 | -10/Materials | Entered another Materials area 423 | -9/Materials | Evolved 2 slots: Utility x2 1083 | -9/Materials | Discovered new exit (range 7) 1436 | -9/Materials | Discovered new exit (range 4) 1449 | -9/Materials | Entered another Materials area 1449 | -8/Materials | Evolved 2 slots: Propulsion x1, Utility x1 1691 | -8/Materials | Build established: Scavenger-Mutant 1913 | -8/Materials | Found Prototype Launcher 1913 | -8/Materials | Identified Rocket Array 2117 | -8/Materials | Discovered new exit (range 15) 2143 | -8/Materials | Entered Storage 2442 | -8/Storage | Identified exit to Factory 2630 | -8/Storage | Garrison activated, responded to threat 2764 | -8/Storage | Entered Factory 2764 | -7/Factory | Evolved 2 slots: Propulsion x1, Utility x1 3051 | -7/Factory | Discovered new exit (range 4) 3052 | -7/Factory | Identified exit to Lower Caves 3067 | -7/Factory | Build established: Hacker-Sprinter 3169 | -7/Factory | Discovered new exit (range 11) 3171 | -7/Factory | Identified exit to Factory 3179 | -7/Factory | Entered another Factory area 3179 | -6/Factory | Evolved 2 slots: Utility x2 3308 | -6/Factory | Repaired Imp. Flight Unit 3339 | -6/Factory | Discovered new exit (range 7) 3341 | -6/Factory | Identified exit to Lower Caves 3562 | -6/Factory | Repaired Imp. Sensor Array 3601 | -6/Factory | Repaired Imp. Light Armor Plating 3685 | -6/Factory | Sucked down chute 3685 | -6/Factory | Entered Waste 3686 | -6/Waste | Joined by Warlord forces that had cleared the area 3695 | -6/Waste | A Compactor rumbled back to life 3695 | -6/Waste | Spotted C-40 Crusher 3697 | -6/Waste | Allies destroyed C-40 Crusher 3728 | -6/Waste | Discovered new exit (range 22) 3845 | -6/Waste | A Compactor rumbled back to life 3848 | -6/Waste | Allies destroyed C-40 Crusher 3870 | -6/Waste | Identified exit to Factory 3874 | -6/Waste | Entered Factory 3874 | -6/Factory | Accompanied by 6 allies 3990 | -6/Factory | P-60 Hacker assimilated allied LG-5QQ(s) 4012 | -6/Factory | Identified exit to Factory 4043 | -6/Factory | Entered another Factory area 4043 | -5/Factory | Evolved 2 slots: Propulsion x1, Utility x1 4189 | -5/Factory | Build established: Hacker-Scout 4236 | -5/Factory | Fabricated Cmb. Linear Gravjet? 4450 | -5/Factory | Identified exit to Upper Caves 4450 | -5/Factory | Identified exit to Factory 4545 | -5/Factory | Repaired Nanoactuators 4672 | -5/Factory | Entered another Factory area 4672 | -4/Factory | Evolved 2 slots: Power x1, Propulsion x1 4688 | -4/Factory | Identified exit to Upper Caves 4688 | -4/Factory | Identified exit to Extension 4775 | -4/Factory | Fabricated Cmb. Linear Gravjet? 4922 | -4/Factory | Search patrols dispatched 5070 | -4/Factory | Entered Upper Caves 5073 | -4/Upper Caves | Build established: Hacker-Mutant 5115 | -4/Upper Caves | Learned location of Quarantine (-2) 5246 | -4/Upper Caves | Attracted the attention of an 0b10 checkpoint 5332 | -4/Upper Caves | Learned location of Testing (-3) 5492 | -4/Upper Caves | Discovered new exit (range 6) 5500 | -4/Upper Caves | Identified exit to Upper Caves 5501 | -4/Upper Caves | Entered another Upper Caves area 5503 | -4/Upper Caves | Attracted the attention of an 0b10 checkpoint 6159 | -4/Upper Caves | Discovered new exit (range 7) 6161 | -4/Upper Caves | Identified exit to Zhirov 6172 | -4/Upper Caves | Entered Zhirov 6172 | -4/Zhirov | Discovered new exit (range 3) 6182 | -4/Zhirov | Met Zhirov 6196 | -4/Zhirov | Found Alien Artifact 6196 | -4/Zhirov | Identified Integrated Reactor 6196 | -4/Zhirov | Installed Integrated Reactor, increased core energy generation (+10) 6204 | -4/Zhirov | Found Alien Artifact 6308 | -4/Zhirov | Learned location of Command (-1) 6313 | -4/Zhirov | Zhirov requested help retrieving the SGEMP Prototype 6326 | -4/Zhirov | Identified exit to Proximity Caves 6327 | -4/Zhirov | Entered Proximity Caves 6330 | -3/Proximity Caves | Spotter reported a threat 6330 | -3/Proximity Caves | Spotter reported a threat 6485 | -3/Proximity Caves | Spotter reported a threat 6594 | -3/Proximity Caves | Discovered new exit (range 8) 6597 | -3/Proximity Caves | Identified exit to Research 6598 | -3/Proximity Caves | Entered Research 6598 | -3/Research | Evolved 2 slots: Utility x2 6628 | -3/Research | Repaired Imp. Medium Armor Plating 6666 | -3/Research | Repaired Cmb. Linear Gravjet 6705 | -3/Research | Repaired Cmb. Linear Gravjet 6749 | -3/Research | Identified exit to Armory 6749 | -3/Research | Identified exit to Testing 6822 | -3/Research | Spotted B-86 Titan 6848 | -3/Research | Search patrols dispatched 6967 | -3/Research | Repaired Broken Cmb. Linear Gravjet? 7012 | -3/Research | Repaired Cmb. Linear Gravjet 7364 | -3/Research | Spotted B-86 Titan 7403 | -3/Research | Spotted B-86 Titan 7545 | -3/Research | Entered Testing 7580 | -3/Testing | Found Prototype Device 7580 | -3/Testing | Identified Exp. Thermal Shield 7685 | -3/Testing | Found Tesla Bomb Launcher 7723 | -3/Testing | Fabricated Cmb. Linear Gravjet? 7948 | -3/Testing | Found Med. Regenerative Plating 7956 | -3/Testing | Found Prototype Protection 7967 | -3/Testing | Spotted Striker 7971 | -3/Testing | Spotted Striker 7990 | -3/Testing | Identified Transdimensional Reconstructor 8201 | -3/Testing | Found Prototype Device 8201 | -3/Testing | Identified AEGIS Remote Shield 8236 | -3/Testing | Discovered new exit (range 14) 8267 | -3/Testing | System corruption reached 10% 8510 | -3/Testing | Identified exit to Research 8511 | -3/Testing | Entered Research 8511 | -2/Research | Evolved 2 slots: Propulsion x1, Weapon x1 8560 | -2/Research | Build established: Wizard-Mutant 8689 | -2/Research | Fabricated Nanosword (x1) 8727 | -2/Research | Fabricated Nanosword (x1) 8753 | -2/Research | Fabricated Cmb. Linear Gravjet (x2) 8756 | -2/Research | Identified Hvy. Regenerative Plating 8877 | -2/Research | Identified exit to Quarantine 8958 | -2/Research | Found Prototype Processor 8958 | -2/Research | Identified Exp. Core Analyzer 9048 | -2/Research | Warped through subspace 9179 | -2/Research | Entered Quarantine 9182 | -2/Quarantine | Cryocooling Duct disabled 9197 | -2/Quarantine | Ambient heat levels rising (+20) 9197 | -2/Quarantine | Non-combat units ordered to evacuate 9234 | -2/Quarantine | Found Alien Impact Weapon 9362 | -2/Quarantine | Discovered new exit (range 22) 9362 | -2/Quarantine | Identified exit to Access 9667 | -2/Quarantine | Found Transdimensional Reconstructor 9672 | -2/Quarantine | Found Alien Artifact 9677 | -2/Quarantine | Found Transdimensional Reconstructor 9683 | -2/Quarantine | Found Alien Artifact 9703 | -2/Quarantine | Found Alien Artifact 9738 | -2/Quarantine | Found Alien Energy Cannon 9848 | -2/Quarantine | Identified Dimensional Node Initializer 9848 | -2/Quarantine | Identified Hpw. Transdimensional Reconstructor (x2) 9868 | -2/Quarantine | Found Alien Artifact 9888 | -2/Quarantine | Build established: Machinist-Mutant 9959 | -2/Quarantine | Spotted Fortress 9993 | -2/Quarantine | Discovered new exit (range 6) 9993 | -2/Quarantine | Discovered new exit (range 7) 9995 | -2/Quarantine | Identified exit to Protoforge 9995 | -2/Quarantine | Entered Protoforge 10044 | -2/Protoforge | Spotted Hotshot 10081 | -2/Protoforge | Discovered exit to Access (range 14) 10086 | -2/Protoforge | Initialized slip node 10103 | -2/Protoforge | Spotted Hotshot 10265 | -2/Protoforge | Warped through subspace to slip node 10268 | -2/Protoforge | Superfortress began startup sequence 10269 | -2/Protoforge | Spotted Hotshot 10581 | -2/Protoforge | Found Prototype Device 10582 | -2/Protoforge | Identified Crosscalibrator 10635 | -2/Protoforge | Spotted Immortal 10637 | -2/Protoforge | Spotted Decapitator 10637 | -2/Protoforge | Spotted Decapitator 10637 | -2/Protoforge | Spotted Decapitator 10637 | -2/Protoforge | Spotted Decapitator 10653 | -2/Protoforge | Spotted Immortal 10665 | -2/Protoforge | System corruption reached 10% 10682 | -2/Protoforge | Destroyed Immortal 10684 | -2/Protoforge | Destroyed Immortal 10733 | -2/Protoforge | Found Corrupted Exp. Jetlance 10772 | -2/Protoforge | Build established: Machinist-Gladiator 11028 | -2/Protoforge | Forge Plexus network access discovered 11067 | -2/Protoforge | Found Cep. Antigrav Storage Unit 11070 | -2/Protoforge | Found Cep. Chromion Battery 11076 | -2/Protoforge | Found Cep. NT7 Matterbank 11115 | -2/Protoforge | Found Faulty Cep. Combat Aerolev Unit 11119 | -2/Protoforge | Found Faulty Cep. Combat Aerolev Unit 11121 | -2/Protoforge | Found Cep. Gyrokinetic System 11245 | -2/Protoforge | First assault squad dispatched 11346 | -2/Protoforge | Found Faulty Cep. Zero-point Core 11356 | -2/Protoforge | Found Faulty Cep. Zero-point Core 11597 | -2/Protoforge | Build established: Machinist-Mutant 11715 | -2/Protoforge | Spotted AP7-3 11715 | -2/Protoforge | Spotted AP7-3 11751 | -2/Protoforge | Identified Core Stripper 11815 | -2/Protoforge | Destroyed AP7-3 11834 | -2/Protoforge | Destroyed AP7-3 11836 | -2/Protoforge | Found Prototype Device 11836 | -2/Protoforge | Identified Exp. ECM Suite 11841 | -2/Protoforge | Found Cep. XC Strikerail 11900 | -2/Protoforge | Identified Subatomic Replicator 11900 | -2/Protoforge | Used Subatomic Replicator to replicate Faulty Cep. Impact Drone Bay 11901 | -2/Protoforge | Found Faulty Cep. Impact Drone Bay 11907 | -2/Protoforge | Found Cep. Cloak Mesh 11909 | -2/Protoforge | Found Cep. Thermoelectric Network 11915 | -2/Protoforge | Found Cld. Directed Potential Cannon 11919 | -2/Protoforge | Found Faulty Cep. Thermoelectric Network 12025 | -2/Protoforge | Build established: Machinist-Gladiator 12222 | -2/Protoforge | Spotted Immortal 12222 | -2/Protoforge | Spotted Immortal 12225 | -2/Protoforge | Spotted V504-i 12225 | -2/Protoforge | Spotted V306-g 12344 | -2/Protoforge | Destroyed V306-g 12364 | -2/Protoforge | Found Cep. Gyrokinetic System 12369 | -2/Protoforge | Found Cep. Gyrokinetic System 12376 | -2/Protoforge | Found Prototype Device 12376 | -2/Protoforge | Identified Exp. Shock Absorption System 12379 | -2/Protoforge | Found Prototype Device 12379 | -2/Protoforge | Identified Exp. Actuator Array 12385 | -2/Protoforge | Allies destroyed V504-i 12396 | -2/Protoforge | Found Cep. Melee Reflex Suite 12409 | -2/Protoforge | Found Cep. Gyrokinetic System 12412 | -2/Protoforge | Found Cep. Gyrokinetic System 12467 | -2/Protoforge | Scanned by Researcher 12569 | -2/Protoforge | Destroyed Immortal 12573 | -2/Protoforge | Found Corrupted Prototype Device 12595 | -2/Protoforge | Destroyed Immortal 12601 | -2/Protoforge | Found Corrupted Exp. Jetlance 12610 | -2/Protoforge | Found Faulty Femtoactuators 12612 | -2/Protoforge | Found Femtoactuators 12624 | -2/Protoforge | Found Prototype Device 12624 | -2/Protoforge | Identified Adv. Particle Accelerator 12627 | -2/Protoforge | Found Prototype Device 12627 | -2/Protoforge | Identified Exp. EM Shield 12636 | -2/Protoforge | Found Prototype Device 12636 | -2/Protoforge | Identified Exp. Weapon Cycler 12650 | -2/Protoforge | Found Cep. Weapon Articulator 12652 | -2/Protoforge | Found Cep. Melee Reflex Suite 12655 | -2/Protoforge | Found Exp. Force Booster 12663 | -2/Protoforge | Found Faulty Exp. Force Booster 12665 | -2/Protoforge | Found Corrupted Cep. Weapon Articulator 12744 | -2/Protoforge | Spotted Decapitator 12744 | -2/Protoforge | Spotted Decapitator 12752 | -2/Protoforge | Build established: Infiltrator-Gladiator 12759 | -2/Protoforge | Spotted V265-w 12759 | -2/Protoforge | Spotted V288-m 12775 | -2/Protoforge | Found Prototype Slashing Weapon 12775 | -2/Protoforge | Identified Cep. Deflector Sword 12782 | -2/Protoforge | Found Faulty Cep. Plasma Driver 12783 | -2/Protoforge | Found Faulty Cep. Plasma Driver 12785 | -2/Protoforge | Warped through subspace to slip node 12786 | -2/Protoforge | Core integrity fell below 50% 12998 | -2/Protoforge | System corruption reached 30% 13006 | -2/Protoforge | Identified Cep. Antimissile System 13009 | -2/Protoforge | Entered Access 13009 | -1/Access | Evolved 2 slots: Weapon x2 13144 | -1/Access | Unchained authorized (QV-33N) 13259 | -1/Access | First assault squad dispatched 13597 | -1/Access | Spotted B-99 Colossus 13941 | -1/Access | Warped through subspace 14166 | -1/Access | Build established: Gladiator 14250 | -1/Access | High security lockdown imminent 14260 | -1/Access | System corruption reached 10% 14304 | -1/Access | Lost 7 parts (2n3u2w) 14330 | -1/Access | High security lockdown engaged 14342 | -1/Access | Discovered new exit (range 8) 14348 | -1/Access | Identified exit to Command 14348 | -1/Access | Entered Command 14470 | -1/Command | Spotted M Guard 14470 | -1/Command | Spotted M Guard 14470 | -1/Command | Spotted Combat Programmer 14478 | -1/Command | Spotted Combat Programmer 14598 | -1/Command | First assault squad dispatched 14606 | -1/Command | Met MAIN.C 14609 | -1/Command | 0b10 Conduit disabled 14629 | -1/Command | Destroyed MAIN.C Shell 14630 | -1/Command | Surrendered to MAIN.C 14630 | -1/Command | Loaded intel: 63 machine locations 14630 | -1/Command | Loaded intel: 117 trap records 14630 | -1/Command | Identified exit to Surface 14630 | -1/Command | Discovered exit to Surface (range 100) 14630 | -1/Command | Discovered exit to Surface (range 47) 14654 | -1/Command | Found Hvy. Regenerative Plating 14655 | -1/Command | Found Prototype Reactor 14657 | -1/Command | Found Exp. System Purifier 14660 | -1/Command | Lost 3 parts (2p1u) 14661 | -1/Command | Found Prototype Processor 14661 | -1/Command | Identified Spectral Analyzer 14912 | -1/Command | MAIN.C activated Command garrisons 14951 | -1/Command | Unknown forces attacked Command 14951 | -1/Command | Spotted EQ-005 14951 | -1/Command | Spotted EQ-004 14951 | -1/Command | Spotted EQ-001 14951 | -1/Command | Spotted EQ-000 14952 | -1/Command | Spotted EQ-006 14953 | -1/Command | Spotted EQ-003 14954 | -1/Command | Spotted EQ-002 14957 | -1/Command | Core integrity fell below 50% 14963 | -1/Command | Allies destroyed EQ-001 14976 | -1/Command | Destroyed EQ-005 14978 | -1/Command | Destroyed EQ-002 14980 | -1/Command | Found Exp. Core Analyzer 14984 | -1/Command | Destroyed EQ-004 15002 | -1/Command | Lost 3 parts (1n2u) 15007 | -1/Command | Lost 5 allies 15015 | -1/Command | Spotted EQ-009 15017 | -1/Command | Spotted EQ-012 15020 | -1/Command | Spotted EQ-016 15024 | -1/Command | Spotted EQ-007 15045 | -1/Command | Spotted EQ-018 15045 | -1/Command | Spotted EQ-019 15049 | -1/Command | Destroyed EQ-007 15062 | -1/Command | Destroyed EQ-018 15065 | -1/Command | Spotted EQ-032 15071 | -1/Command | Identified Vortex Chain Reactor 15078 | -1/Command | Destroyed EQ-009 15090 | -1/Command | Spotted EQ-030 15110 | -1/Command | Spotted EQ-028 15112 | -1/Command | Destroyed EQ-028 15117 | -1/Command | Spotted EQ-037 15118 | -1/Command | Lost 6 parts (2p2n1u1w) 15133 | -1/Command | Lost 32 allies 15150 | -1/Command | Spotted EQ-038 15153 | -1/Command | Spotted EQ-050 15160 | -1/Command | Destroyed EQ-050 15163 | -1/Command | Spotted EQ-040 15164 | -1/Command | Destroyed EQ-040 15169 | -1/Command | Spotted EQ-055 15197 | -1/Command | All MAIN.C guards destroyed 15204 | -1/Command | Found Exp. Core Analyzer 15216 | -1/Command | Lost 5 allies 15238 | -1/Command | Spotted EQ-027 15239 | -1/Command | Spotted EQ-051 15239 | -1/Command | Spotted EQ-052 15240 | -1/Command | Spotted EQ-053 15241 | -1/Command | Destroyed EQ-053 15260 | -1/Command | Spotted EQ-060 15262 | -1/Command | Spotted EQ-057 15263 | -1/Command | Spotted EQ-073 15273 | -1/Command | Lost 4 allies 15282 | -1/Command | Spotted EQ-066 15283 | -1/Command | Spotted EQ-074 15301 | -1/Command | Found Prototype Device 15301 | -1/Command | Identified Adv. Kinecellerator 15307 | -1/Command | Spotted EQ-083 15316 | -1/Command | Spotted EQ-075 15327 | -1/Command | Spotted EQ-070 15329 | -1/Command | Spotted EQ-064 15329 | -1/Command | Spotted EQ-078 15333 | -1/Command | Destroyed EQ-064 15334 | -1/Command | Spotted EQ-076 15352 | -1/Command | Destroyed EQ-070 15361 | -1/Command | Core integrity fell below 20% 15369 | -1/Command | Spotted EQ-084 15369 | -1/Command | Spotted EQ-086 15369 | -1/Command | Spotted EQ-088 15369 | -1/Command | Spotted EQ-101 15369 | -1/Command | Spotted EQ-104 15369 | -1/Command | Spotted EQ-102 15369 | -1/Command | Spotted EQ-085 15371 | -1/Command | Spotted EQ-081 15381 | *** | Escaped! Last Messages --------------- 15373_ Neutron Missile intercepted. 15373_ Slug penetrates B-99 Colossus. 15374_ The unstable cave ceiling collapses. 15374_ Acquired 10 matter. 15374_ Slug penetrates Reinforced Barrier. 15375_ Penetrated by Slug. 15375_ Graviton Reactor destroyed. 15375_ Penetrated by Slug. 15375_ Slug penetrates Earth. 15376_ Slug penetrates MAIN.C. 15376_ B-99 Colossus suffers critical hit (Destroy). 15376_ B-99 Colossus destroyed. 15377_ EQ-076 destroyed. 15377_ Slug penetrates MAIN.C. 15378_ Chain reaction triggered in Corrupted Lgt. Antimatter Reactor. 15378_ Penetrated by Slug. 15378_ Centrium Medium Armor Plating destroyed. 15380_ Mic. Antimatter Reactor+ destroyed. Map ----- +----------------------------------------------------+ | # % % %%% [% | | # # %!! %=[%== | | # # # ###/## % ==!%* | | ###### ## # #* ### * % ] #### [!!= | | ?????# # %[ %=%[ [ #?#==[* | | ###### ## ![ ##?#!!% | | % ! #?###### | | ^ [ % #??????? | | ^ % ######## | | ^ = %[ = #????? | | [= ! ##????? | | = [ # #????? | | =! #????? | | # #????? | | !% # #????? | | = | ##? #????? | | !** = #??# ????? | | !** =! #???##???? | | *** !% #????????? | | ###+######## # #????????? | | # ] ! #????????? | | # !! # #????????? | | # ! *%# %= #????????? | | # ######### ### #????????? | | # ! ! + ## # = #????????? | | # / ###### ## @ #=%* ^ #????????? | | ###############????# ## #!/! ^ #########? | | #""""""#?########### ######## #? | | + """#?# # ####### T#? | | + """#?# # = ####### ##? | | + """#?# + % #??#### ##? | | #""""""#?# # #??#]][ =#? | | #################### #??#][[ [ =#? | | + #??#!! =#? | | # ##########/##### *==#? | | # # ! #########? | | # + #????????? | | # ########### #????????? | | # #?????????# * #????????? | | # #?????????# """ """ #????????? | | ######## #?????????# """T""" #????????? | | ???????# #?????????################????????? | | ???????# #?????????????????????????????????? | | ????####+#######?????????????????????????????????? | | ????# #??????????????????????????????????? | | ????# / #??????????????????????????????????? | | ????# #??????????????????????????????????? | | ????# #??????????????????????????????????? | | ????###########??????????????????????????????????? | | ?????????????????????????????????????????????????? | +----------------------------------------------------+ Best States ------------- Heat Dissipation 90 Energy Generation 71 Energy Capacity 1690 Matter Stores 300 Matter Capacity 300 Sight Range 23 Robot Scan Range 18 Terrain Scan Range 24 Terrain Scan Density 10 ECM Strength 3 Jamming Range 16 Cloak Strength 6 Corruption Containment 12 Armor Coverage 825 Resistance: EM 75 Core Shielding 40 Utility Shielding 66 Point Defense Rating 480 Projectile Deflection 15 Melee Speed Boost 50 Phase Shifting 15 Evasion (%) 83 Targeting Accuracy 30 Melee Accuracy 6 Core Analysis 12 Recoil Reduction 3 Force Boost 50 Offensive Hacking 58 Defensive Hacking 12 Authchip Count 2 Item Schematics ----------------- Cmb. Linear Gravjet | -5/Factory | Scanalyzed Exp. Utility Shielding | -5/Factory | Hacked Assault Drone Bay | -4/Zhirov | Free Exp. Heat Sink | -4/Zhirov | Free Exp. Optical Array | -4/Zhirov | Free Imp. Arc Thrower | -4/Zhirov | Free Com. Mass Driver | -3/Testing | Archive Hvy. Tesla Rifle | -3/Testing | Archive Imp. Matter Compressor | -3/Testing | Archive Lrn. Phase Cannon | -3/Testing | Archive Med. Regenerative Plating | -3/Testing | Hacked Lgt. Regenerative Plating | -3/Testing | Hacked Nanosword | -3/Testing | Hacked Molecular Scythe | -2/Protoforge | Archive Centrium Medium Armor Plating | -2/Protoforge | Archive Hvy. Neutron Cannon | -2/Protoforge | Archive Exp. Biometal Medium Treads | -2/Protoforge | Archive Robot Schematics ------------------ R-10 Processor | -2/Protoforge | Archive C-55 Analyst | -2/Protoforge | Archive B-74 Champion | -2/Protoforge | Archive Fabricated ------------ Cmb. Linear Gravjet | x2 | -5/Factory | Preloaded Cmb. Linear Gravjet | x2 | -4/Factory | Authchip Cmb. Linear Gravjet | x2 | -3/Testing | Authchip Nanosword | x1 | -2/Research | Authchip Nanosword | x1 | -2/Research | Authchip Cmb. Linear Gravjet | x2 | -2/Research Repaired ---------- Imp. Flight Unit | 37% | -6/Factory Imp. Sensor Array | 18% | -6/Factory Imp. Light Armor Plating | 23% | -6/Factory Nanoactuators | 50% | -5/Factory Imp. Medium Armor Plating | 15% | -3/Research Cmb. Linear Gravjet | 37% | -3/Research Cmb. Linear Gravjet | 39% | -3/Research Cmb. Linear Gravjet | 53% | -3/Research | Broken Cmb. Linear Gravjet | 57% | -3/Research Studied --------- Cmb. Linear Gravjet | -3/Research | Hacked Lgt. Particle Reactor | -3/Testing | Hacked Mic. Antimatter Reactor | -2/Quarantine | Hacked Alien Tech Used ----------------- Integrated Reactor Transdimensional Reconstructor Dimensional Node Initializer High-powered Transdimensional Reconstructor Core Stripper Subatomic Replicator Achievements -------------- Prodigal Son Challenges ------------ None Game ------ Seed BarrageLightningArticulator Manual? 0 Play Time 04:52:54 Cumulative 415.9 hours Start 2025.11.24 @ 09:26:20 End 2025.11.25 @ 00:00:45 Sessions 5 Manual Loads 0 Difficulty Rogue Special Mode None Game No. 134 Rogue 134 Adventurer 0 Explorer 0 Win Type 0 Total 13 Types 4/0/6/0/1/0/1/0/0/1 Lore% 80 Gallery% 86 Achievement% 72 Wizard Run 0 Options --------- Layout 1 ASCII 0 Keyboard 1 Movement Arrows Keybinds 0 Fullscreen 1 Font 24/Smallcaps Map View 50x35 Zoom Use 0% Tactical HUD 1 Map Filters NONE Filters NONE Steam 1 RUN: 7ab521c2-2283-4535-80b4-22f867a01427